[Event "*** Titled Tuesday Blitz"]
[Site "Chess.com"]
[Date "2020.05.26"]
[Round "2"]
[White "vaishali2001"]
[Black "PavelChernomordik"]
[Result "1-0"]
[WhiteElo "2623"]
[BlackElo "2220"]
[TimeControl "180+1"]
[EndTime "10:18:45 PDT"]
[Termination "vaishali2001 won by resignation"]

1. d4 {[%clk 0:03:00.6]} 1... g6 {[%clk 0:03:00.1]} 2. e4 {[%clk 0:02:59.4]}
2... Bg7 {[%clk 0:03:01]} 3. Nc3 {[%clk 0:02:59.7]} 3... d6 {[%clk 0:03:01.1]}
4. Nf3 {[%clk 0:02:59.9]} 4... a6 {[%clk 0:03:00.3]} 5. a4 {[%clk 0:02:59.2]}
5... b6 {[%clk 0:03:00.2]} 6. Bc4 {[%clk 0:02:57.6]} 6... e6 {[%clk 0:02:59.8]}
7. h4 {[%clk 0:02:55.9]} 7... h6 {[%clk 0:02:59]} 8. Be3 {[%clk 0:02:54.2]} 8...
Bb7 {[%clk 0:02:57.3]} 9. Qd2 {[%clk 0:02:41.8]} 9... Nd7 {[%clk 0:02:56.3]} 10.
h5 {[%clk 0:02:40.9]} 10... g5 {[%clk 0:02:55.3]} 11. Bb3 {[%clk 0:02:36.7]}
11... Ngf6 {[%clk 0:02:53.9]} 12. e5 {[%clk 0:02:30.2]} 12... dxe5 {[%clk
0:02:46.9]} 13. dxe5 {[%clk 0:02:27]} 13... Ng4 {[%clk 0:02:45.4]} 14. O-O-O
{[%clk 0:02:08.5]} 14... Ndxe5 {[%clk 0:02:34.4]} 15. Qe2 {[%clk 0:02:00.9]}
15... Qe7 {[%clk 0:02:29.3]} 16. Bd4 {[%clk 0:01:46.3]} 16... f6 {[%clk
0:02:09.9]} 17. Nxe5 {[%clk 0:01:42.4]} 17... Nxe5 {[%clk 0:02:07.6]} 18. Bxe5
{[%clk 0:01:34.9]} 18... fxe5 {[%clk 0:02:06.3]} 19. Qg4 {[%clk 0:01:27.4]}
19... Bc8 {[%clk 0:01:51]} 20. Qe4 {[%clk 0:01:21.9]} 20... Rb8 {[%clk
0:01:49.4]} 21. Qc6+ {[%clk 0:01:04.5]} 21... Kf7 {[%clk 0:01:37.1]} 22. Rh3
{[%clk 0:00:43.2]} 22... Re8 {[%clk 0:01:24.9]} 23. Rhd3 {[%clk 0:00:22.7]}
23... Kg8 {[%clk 0:01:22.9]} 24. Rd7 {[%clk 0:00:15.4]} 24... Bxd7 {[%clk
0:01:20.9]} 25. Rxd7 {[%clk 0:00:16.3]} 25... Qf6 {[%clk 0:01:15.7]} 26. Ne4
{[%clk 0:00:15.7]} 26... Qf5 {[%clk 0:01:10]} 27. Kb1 {[%clk 0:00:15.2]} 27...
Rbc8 {[%clk 0:01:02.3]} 28. f3 {[%clk 0:00:14.2]} 28... Kh8 {[%clk 0:00:58.6]}
29. c3 {[%clk 0:00:14]} 29... Bf8 {[%clk 0:00:49.1]} 30. Bc2 {[%clk 0:00:13.3]}
30... Qf4 {[%clk 0:00:45.2]} 31. Rxc7 {[%clk 0:00:13.4]} 31... Rxc7 {[%clk
0:00:42.3]} 32. Qxc7 {[%clk 0:00:14.3]} 32... Re7 {[%clk 0:00:39.4]} 33. Qxb6
{[%clk 0:00:14.3]} 33... Qf7 {[%clk 0:00:32]} 34. Qxa6 {[%clk 0:00:14]} 34...
Ra7 {[%clk 0:00:30.4]} 35. Qb5 {[%clk 0:00:13.5]} 35... Rb7 {[%clk 0:00:28.6]}
36. Qxe5+ {[%clk 0:00:13.4]} 36... Bg7 {[%clk 0:00:28.4]} 37. Qc5 {[%clk
0:00:13.6]} 37... Qc7 {[%clk 0:00:23.6]} 38. Qxc7 {[%clk 0:00:11.6]} 38... Rxc7
{[%clk 0:00:23.2]} 39. Ka2 {[%clk 0:00:11.6]} 39... Be5 {[%clk 0:00:21.8]} 40.
a5 {[%clk 0:00:11.6]} 40... Kg7 {[%clk 0:00:18.6]} 41. Ka3 {[%clk 0:00:11.4]}
41... Kf8 {[%clk 0:00:18.3]} 42. Ka4 {[%clk 0:00:10.5]} 42... Ke7 {[%clk
0:00:18.7]} 43. a6 {[%clk 0:00:09.7]} 43... Kd7 {[%clk 0:00:17.6]} 44. b4 {[%clk
0:00:10]} 44... Bxc3 {[%clk 0:00:15.8]} 45. Nxc3 {[%clk 0:00:10.2]} 45... Rxc3
{[%clk 0:00:15.2]} 46. Be4 {[%clk 0:00:08.9]} 46... Rc1 {[%clk 0:00:13.7]} 47.
Kb5 {[%clk 0:00:04.3]} 47... Kc7 {[%clk 0:00:13.4]} 48. a7 {[%clk 0:00:04.3]}
48... Ra1 {[%clk 0:00:06.9]} 49. a8=Q {[%clk 0:00:05.2]} 49... Rxa8 {[%clk
0:00:06.7]} 50. Bxa8 {[%clk 0:00:06.1]} 1-0

[Event "*** Titled Tuesday Blitz"]
[Site "Chess.com"]
[Date "2020.05.26"]
[Round "2"]
[White "doons21"]
[Black "VerdeNotte"]
[Result "0-1"]
[WhiteElo "2506"]
[BlackElo "2771"]
[TimeControl "180+1"]
[EndTime "10:18:46 PDT"]
[Termination "VerdeNotte won by resignation"]

1. e4 {[%clk 0:03:00.9]} 1... e5 {[%clk 0:02:58.1]} 2. Nf3 {[%clk 0:03:00.3]}
2... Nc6 {[%clk 0:02:57.5]} 3. Bb5 {[%clk 0:03:00.7]} 3... a6 {[%clk 0:02:57.4]}
4. Ba4 {[%clk 0:03:01.3]} 4... d6 {[%clk 0:02:56.7]} 5. Qe2 {[%clk 0:03:00.5]}
5... g6 {[%clk 0:02:44.2]} 6. c3 {[%clk 0:02:58.4]} 6... Bg7 {[%clk 0:02:44.2]}
7. O-O {[%clk 0:02:58.2]} 7... Nf6 {[%clk 0:02:37.6]} 8. d4 {[%clk 0:02:57.6]}
8... Bd7 {[%clk 0:02:37.6]} 9. dxe5 {[%clk 0:02:36.7]} 9... Nxe5 {[%clk
0:02:32.2]} 10. Bxd7+ {[%clk 0:02:37]} 10... Nfxd7 {[%clk 0:02:29]} 11. Nxe5
{[%clk 0:02:35.9]} 11... dxe5 {[%clk 0:02:27.1]} 12. Rd1 {[%clk 0:02:30.1]}
12... Qe7 {[%clk 0:02:23.9]} 13. b4 {[%clk 0:02:23.3]} 13... O-O {[%clk
0:02:19.7]} 14. Be3 {[%clk 0:02:19.1]} 14... Rfd8 {[%clk 0:02:11.1]} 15. Nd2
{[%clk 0:02:14.3]} 15... Nf8 {[%clk 0:02:09.8]} 16. Nc4 {[%clk 0:02:14.2]} 16...
Ne6 {[%clk 0:02:09.5]} 17. g3 {[%clk 0:02:14.2]} 17... h5 {[%clk 0:02:02.5]} 18.
h4 {[%clk 0:02:13.7]} 18... Rd7 {[%clk 0:01:53.3]} 19. Na5 {[%clk 0:02:01.6]}
19... c6 {[%clk 0:01:41.8]} 20. Rxd7 {[%clk 0:01:54.4]} 20... Qxd7 {[%clk
0:01:41]} 21. Rd1 {[%clk 0:01:55.3]} 21... Qc7 {[%clk 0:01:39.1]} 22. Nc4 {[%clk
0:01:54.1]} 22... b5 {[%clk 0:01:32.4]} 23. Nb6 {[%clk 0:01:34.2]} 23... Rd8
{[%clk 0:01:28.3]} 24. a4 {[%clk 0:01:34.6]} 24... Nd4 {[%clk 0:00:49.2]} 25.
cxd4 {[%clk 0:01:22.3]} 25... exd4 {[%clk 0:00:49.6]} 26. a5 {[%clk 0:01:03]}
26... dxe3 {[%clk 0:00:48.4]} 27. Rxd8+ {[%clk 0:01:03.9]} 27... Qxd8 {[%clk
0:00:49]} 28. Qxe3 {[%clk 0:01:04.8]} 28... Qd6 {[%clk 0:00:33.2]} 29. Qb3
{[%clk 0:00:49]} 29... Bf8 {[%clk 0:00:31.7]} 30. Qf3 {[%clk 0:00:43.9]} 30...
Qd4 {[%clk 0:00:24.6]} 31. Kg2 {[%clk 0:00:41.4]} 31... Bxb4 {[%clk 0:00:24.3]}
32. e5 {[%clk 0:00:38.7]} 32... Bxa5 {[%clk 0:00:23.2]} 33. Nc8 {[%clk
0:00:39.1]} 33... Qxe5 {[%clk 0:00:14.5]} 34. Qxc6 {[%clk 0:00:38.8]} 34... Qe6
{[%clk 0:00:14.2]} 35. Nd6 {[%clk 0:00:37.3]} 35... Bb4 {[%clk 0:00:13]} 36.
Qa8+ {[%clk 0:00:37.1]} 36... Kh7 {[%clk 0:00:12.6]} 37. Ne4 {[%clk 0:00:36.8]}
37... Be7 {[%clk 0:00:11]} 38. Kf3 {[%clk 0:00:33.9]} 38... b4 {[%clk
0:00:10.6]} 39. Qe8 {[%clk 0:00:30.7]} 39... Qf5+ {[%clk 0:00:08.3]} 40. Ke3
{[%clk 0:00:30.3]} 40... Bc5+ {[%clk 0:00:08.2]} 41. Kd3 {[%clk 0:00:29.8]}
41... Qd5+ {[%clk 0:00:06.8]} 42. Ke2 {[%clk 0:00:29.2]} 42... Qc4+ {[%clk
0:00:05.4]} 43. Kf3 {[%clk 0:00:28.6]} 43... Qd5 {[%clk 0:00:03]} 44. Kg2 {[%clk
0:00:25.2]} 44... Kg7 {[%clk 0:00:03.6]} 45. f3 {[%clk 0:00:20]} 45... Bd4
{[%clk 0:00:04.1]} 46. Qb8 {[%clk 0:00:18.8]} 46... b3 {[%clk 0:00:04.4]} 47.
Kf1 {[%clk 0:00:17.3]} 47... b2 {[%clk 0:00:04.9]} 48. Nd2 {[%clk 0:00:16.2]}
48... Qb5+ {[%clk 0:00:05.2]} 49. Qxb5 {[%clk 0:00:15.4]} 49... axb5 {[%clk
0:00:06.1]} 50. Nb1 {[%clk 0:00:15.8]} 50... b4 {[%clk 0:00:06.2]} 51. Ke2
{[%clk 0:00:16.7]} 51... Kf6 {[%clk 0:00:06.6]} 52. Kd3 {[%clk 0:00:17.2]} 52...
Ke5 {[%clk 0:00:07.2]} 53. Nd2 {[%clk 0:00:14.9]} 53... Bf2 {[%clk 0:00:07.3]}
54. f4+ {[%clk 0:00:14.5]} 54... Kf5 {[%clk 0:00:07.4]} 55. Ke2 {[%clk
0:00:13.4]} 55... Bxg3 {[%clk 0:00:07.9]} 56. Nb1 {[%clk 0:00:02.6]} 56... Bxf4
{[%clk 0:00:08.8]} 57. Kf3 {[%clk 0:00:03.4]} 57... Be5 {[%clk 0:00:08.9]} 58.
Kg2 {[%clk 0:00:03.2]} 58... Bc3 {[%clk 0:00:09.4]} 59. Kf3 {[%clk 0:00:04.1]}
59... f6 {[%clk 0:00:09.5]} 60. Ke2 {[%clk 0:00:05]} 60... Kg4 {[%clk
0:00:09.7]} 61. Kd3 {[%clk 0:00:05.9]} 61... Kxh4 {[%clk 0:00:10.3]} 62. Ke4
{[%clk 0:00:06.5]} 62... Kg3 {[%clk 0:00:10.2]} 63. Ke3 {[%clk 0:00:07.4]} 63...
h4 {[%clk 0:00:10.4]} 0-1

[Event "*** Titled Tuesday Blitz"]
[Site "Chess.com"]
[Date "2020.05.26"]
[Round "2"]
[White "Ranindu2003"]
[Black "OK97"]
[Result "0-1"]
[WhiteElo "2522"]
[BlackElo "2796"]
[TimeControl "180+1"]
[EndTime "10:18:51 PDT"]
[Termination "OK97 won by resignation"]

1. e4 {[%clk 0:02:59.9]} 1... g6 {[%clk 0:02:59.8]} 2. d4 {[%clk 0:02:59.6]}
2... Bg7 {[%clk 0:03:00.2]} 3. Nc3 {[%clk 0:02:59.8]} 3... d6 {[%clk 0:03:00.7]}
4. f4 {[%clk 0:02:59.9]} 4... Nf6 {[%clk 0:03:00.7]} 5. Nf3 {[%clk 0:02:59.7]}
5... O-O {[%clk 0:03:01.2]} 6. e5 {[%clk 0:02:59.9]} 6... dxe5 {[%clk
0:03:00.1]} 7. fxe5 {[%clk 0:03:00.5]} 7... Nd5 {[%clk 0:02:59.6]} 8. Bc4 {[%clk
0:03:01.2]} 8... Be6 {[%clk 0:02:56.5]} 9. Bxd5 {[%clk 0:03:00.3]} 9... Bxd5
{[%clk 0:02:57.4]} 10. Nxd5 {[%clk 0:03:00.8]} 10... Qxd5 {[%clk 0:02:58.1]} 11.
Qe2 {[%clk 0:03:01.2]} 11... f6 {[%clk 0:02:55.4]} 12. c4 {[%clk 0:02:50.3]}
12... Qe6 {[%clk 0:02:08.4]} 13. d5 {[%clk 0:02:24.2]} 13... Qb6 {[%clk
0:02:08.1]} 14. Be3 {[%clk 0:01:37.3]} 14... Qb4+ {[%clk 0:02:06.7]} 15. Bd2
{[%clk 0:01:33.6]} 15... Qxb2 {[%clk 0:01:59.5]} 16. O-O {[%clk 0:01:33]} 16...
Na6 {[%clk 0:01:47.6]} 17. Rab1 {[%clk 0:00:31]} 17... Qa3 {[%clk 0:01:25.2]}
18. Rxb7 {[%clk 0:00:24.5]} 18... fxe5 {[%clk 0:01:22.5]} 19. Rbb1 {[%clk
0:00:14]} 19... Rab8 {[%clk 0:00:55]} 20. Nxe5 {[%clk 0:00:09]} 20... Rxb1
{[%clk 0:00:43.2]} 21. Rxb1 {[%clk 0:00:09.9]} 21... Qxa2 {[%clk 0:00:40.6]} 22.
Rd1 {[%clk 0:00:09.7]} 22... Qc2 {[%clk 0:00:27.6]} 23. Nf3 {[%clk 0:00:08.9]}
23... Nc5 {[%clk 0:00:24.4]} 24. Rc1 {[%clk 0:00:08.7]} 24... Qe4 {[%clk
0:00:23.6]} 25. Qxe4 {[%clk 0:00:05.7]} 25... Nxe4 {[%clk 0:00:24.5]} 26. Bb4
{[%clk 0:00:06.4]} 26... Bf6 {[%clk 0:00:19.8]} 27. Re1 {[%clk 0:00:06]} 27...
Rb8 {[%clk 0:00:19]} 28. Ba3 {[%clk 0:00:02.2]} 28... Rb3 {[%clk 0:00:16]} 29.
Bxe7 {[%clk 0:00:01.8]} 29... Bxe7 {[%clk 0:00:15.1]} 30. Rxe4 {[%clk
0:00:02.1]} 30... Bc5+ {[%clk 0:00:16]} 31. Kf1 {[%clk 0:00:02.7]} 31... a5
{[%clk 0:00:15.9]} 32. Re8+ {[%clk 0:00:02.1]} 32... Kg7 {[%clk 0:00:13.7]} 33.
Ra8 {[%clk 0:00:03]} 33... Bb6 {[%clk 0:00:12.1]} 34. Ng5 {[%clk 0:00:02.8]}
34... Rb2 {[%clk 0:00:12.3]} 35. Ne6+ {[%clk 0:00:03.2]} 35... Kf6 {[%clk
0:00:12.9]} 36. g3 {[%clk 0:00:03.6]} 36... Rc2 {[%clk 0:00:11.9]} 37. Rf8+
{[%clk 0:00:02.8]} 37... Ke7 {[%clk 0:00:12]} 38. Rh8 {[%clk 0:00:02.9]} 38...
a4 {[%clk 0:00:11.8]} 39. Rxh7+ {[%clk 0:00:03.1]} 39... Kf6 {[%clk 0:00:12.3]}
40. Rh8 {[%clk 0:00:02.6]} 40... a3 {[%clk 0:00:12.7]} 41. Rf8+ {[%clk
0:00:02.6]} 41... Ke5 {[%clk 0:00:11.7]} 42. Ra8 {[%clk 0:00:03.5]} 42... a2
{[%clk 0:00:12]} 43. c5 {[%clk 0:00:04]} 43... Rc1+ {[%clk 0:00:11.2]} 44. Ke2
{[%clk 0:00:04.2]} 44... a1=Q {[%clk 0:00:12.1]} 45. Rxa1 {[%clk 0:00:04.7]}
45... Rxa1 {[%clk 0:00:13]} 46. cxb6 {[%clk 0:00:05.3]} 46... cxb6 {[%clk
0:00:13.9]} 47. Nf4 {[%clk 0:00:06]} 47... g5 {[%clk 0:00:13.4]} 48. Nd3+ {[%clk
0:00:05.8]} 48... Kxd5 {[%clk 0:00:13.4]} 49. h4 {[%clk 0:00:05.7]} 49... gxh4
{[%clk 0:00:12.8]} 50. gxh4 {[%clk 0:00:06.6]} 50... Kd4 {[%clk 0:00:11.4]} 51.
h5 {[%clk 0:00:06.5]} 51... Ra2+ {[%clk 0:00:11.3]} 0-1

[Event "*** Titled Tuesday Blitz"]
[Site "Chess.com"]
[Date "2020.05.26"]
[Round "2"]
[White "GMKrikor"]
[Black "Zq1"]
[Result "1/2-1/2"]
[WhiteElo "2746"]
[BlackElo "2508"]
[TimeControl "180+1"]
[EndTime "10:18:53 PDT"]
[Termination "Game drawn - insufficient material"]

1. Nf3 {[%clk 0:02:55.7]} 1... Nf6 {[%clk 0:02:54.3]} 2. c4 {[%clk 0:02:54.1]}
2... e6 {[%clk 0:02:52]} 3. Nc3 {[%clk 0:02:49.2]} 3... d5 {[%clk 0:02:51.7]} 4.
e3 {[%clk 0:02:48.9]} 4... Be7 {[%clk 0:02:49.2]} 5. b3 {[%clk 0:02:45.6]} 5...
O-O {[%clk 0:02:44.6]} 6. Bb2 {[%clk 0:02:40.8]} 6... c5 {[%clk 0:02:44.4]} 7.
cxd5 {[%clk 0:02:38.7]} 7... exd5 {[%clk 0:02:41.5]} 8. d4 {[%clk 0:02:36.2]}
8... Nc6 {[%clk 0:02:40]} 9. Be2 {[%clk 0:02:13]} 9... Bg4 {[%clk 0:02:38.6]}
10. dxc5 {[%clk 0:02:11.9]} 10... Bxc5 {[%clk 0:02:35.2]} 11. O-O {[%clk
0:02:10.7]} 11... a6 {[%clk 0:02:31.6]} 12. Rc1 {[%clk 0:02:08.4]} 12... Ba7
{[%clk 0:02:30.4]} 13. h3 {[%clk 0:02:08.3]} 13... Bh5 {[%clk 0:02:29.4]} 14.
Nh4 {[%clk 0:02:06.9]} 14... Bxe2 {[%clk 0:02:27.2]} 15. Nxe2 {[%clk 0:02:07.8]}
15... Rc8 {[%clk 0:02:19]} 16. Nf5 {[%clk 0:02:00.7]} 16... Re8 {[%clk
0:02:04.7]} 17. Neg3 {[%clk 0:01:31.4]} 17... Re6 {[%clk 0:01:41.8]} 18. Nxg7
{[%clk 0:01:07]} 18... Kxg7 {[%clk 0:01:40.8]} 19. Nh5+ {[%clk 0:01:06]} 19...
Kf8 {[%clk 0:01:30.3]} 20. Nxf6 {[%clk 0:00:45.6]} 20... Rxf6 {[%clk 0:01:29.8]}
21. Bxf6 {[%clk 0:00:42.2]} 21... Qxf6 {[%clk 0:01:28.9]} 22. Qxd5 {[%clk
0:00:42.9]} 22... Rd8 {[%clk 0:01:24.8]} 23. Qe4 {[%clk 0:00:42.4]} 23... Qg6
{[%clk 0:01:05.1]} 24. Qxg6 {[%clk 0:00:28.3]} 24... hxg6 {[%clk 0:01:04.6]} 25.
Rfd1 {[%clk 0:00:29.2]} 25... Rxd1+ {[%clk 0:01:04.1]} 26. Rxd1 {[%clk
0:00:28.5]} 26... Ke7 {[%clk 0:01:04.7]} 27. g4 {[%clk 0:00:24.6]} 27... g5
{[%clk 0:01:03.8]} 28. Kg2 {[%clk 0:00:24.8]} 28... Nb4 {[%clk 0:00:58.3]} 29.
Rd2 {[%clk 0:00:24.6]} 29... Ke6 {[%clk 0:00:57.3]} 30. Kg3 {[%clk 0:00:23.8]}
30... Bb8+ {[%clk 0:00:55.9]} 31. Kf3 {[%clk 0:00:20.8]} 31... Nd5 {[%clk
0:00:54]} 32. Ke4 {[%clk 0:00:17.3]} 32... Nc3+ {[%clk 0:00:53.3]} 33. Kd3
{[%clk 0:00:17.4]} 33... Nd5 {[%clk 0:00:53.5]} 34. a3 {[%clk 0:00:16.5]} 34...
Bd6 {[%clk 0:00:49.3]} 35. b4 {[%clk 0:00:14.7]} 35... b5 {[%clk 0:00:45.7]} 36.
Ke4 {[%clk 0:00:08.5]} 36... Nc3+ {[%clk 0:00:35.6]} 37. Kd3 {[%clk 0:00:08.7]}
37... Nd5 {[%clk 0:00:33.7]} 38. Rb2 {[%clk 0:00:09.1]} 38... Nb6 {[%clk
0:00:32.7]} 39. Ra2 {[%clk 0:00:07.9]} 39... Kd5 {[%clk 0:00:30.4]} 40. f3
{[%clk 0:00:06.5]} 40... Nc4 {[%clk 0:00:28.5]} 41. Ra1 {[%clk 0:00:05.2]} 41...
Be5 {[%clk 0:00:27.5]} 42. Ra2 {[%clk 0:00:05.7]} 42... Nb2+ {[%clk 0:00:27.2]}
43. Kc2 {[%clk 0:00:05.3]} 43... Nc4 {[%clk 0:00:26.4]} 44. Kd3 {[%clk
0:00:05.8]} 44... f6 {[%clk 0:00:22.9]} 45. Ke2 {[%clk 0:00:03]} 45... Bb2
{[%clk 0:00:20.9]} 46. a4 {[%clk 0:00:03.4]} 46... Bc3 {[%clk 0:00:21]} 47. axb5
{[%clk 0:00:03.4]} 47... axb5 {[%clk 0:00:21.3]} 48. Ra6 {[%clk 0:00:03.7]}
48... Ke5 {[%clk 0:00:20]} 49. Ra8 {[%clk 0:00:02.6]} 49... Bxb4 {[%clk
0:00:20]} 50. Rb8 {[%clk 0:00:03.2]} 50... Nd6 {[%clk 0:00:19]} 51. Kd3 {[%clk
0:00:03.7]} 51... Bc5 {[%clk 0:00:19.1]} 52. Ra8 {[%clk 0:00:02.6]} 52... b4
{[%clk 0:00:18.5]} 53. Rb8 {[%clk 0:00:03.1]} 53... Kd5 {[%clk 0:00:18.5]} 54.
f4 {[%clk 0:00:03.3]} 54... Kc6 {[%clk 0:00:17.6]} 55. Rf8 {[%clk 0:00:02.2]}
55... b3 {[%clk 0:00:15.8]} 56. Rxf6 {[%clk 0:00:02.5]} 56... b2 {[%clk
0:00:13.2]} 57. Kc2 {[%clk 0:00:02.7]} 57... Ba3 {[%clk 0:00:13.1]} 58. fxg5
{[%clk 0:00:02.9]} 58... Kd5 {[%clk 0:00:13.1]} 59. Rf4 {[%clk 0:00:02.8]} 59...
Nc4 {[%clk 0:00:12.3]} 60. Rxc4 {[%clk 0:00:02]} 60... Kxc4 {[%clk 0:00:12.3]}
61. g6 {[%clk 0:00:02.8]} 61... Bf8 {[%clk 0:00:11.6]} 62. Kxb2 {[%clk
0:00:03.2]} 62... Kd3 {[%clk 0:00:11.7]} 63. Kb3 {[%clk 0:00:03.8]} 63... Kxe3
{[%clk 0:00:11.7]} 64. Kc4 {[%clk 0:00:04.4]} 64... Kf4 {[%clk 0:00:11.7]} 65.
Kd5 {[%clk 0:00:04.8]} 65... Kg5 {[%clk 0:00:12]} 66. Ke4 {[%clk 0:00:04.2]}
66... Kxg6 {[%clk 0:00:12.2]} 67. h4 {[%clk 0:00:04.9]} 67... Be7 {[%clk
0:00:11.7]} 68. g5 {[%clk 0:00:05.8]} 68... Bxg5 {[%clk 0:00:11]} 69. hxg5
{[%clk 0:00:06.7]} 69... Kxg5 {[%clk 0:00:11.5]} 1/2-1/2

[Event "*** Titled Tuesday Blitz"]
[Site "Chess.com"]
[Date "2020.05.26"]
[Round "2"]
[White "temus_galaktionov"]
[Black "GMJustin"]
[Result "1-0"]
[WhiteElo "2699"]
[BlackElo "2304"]
[TimeControl "180+1"]
[EndTime "10:18:53 PDT"]
[Termination "temus_galaktionov won on time"]

1. d4 {[%clk 0:03:00.9]} 1... d5 {[%clk 0:02:54.3]} 2. Nf3 {[%clk 0:03:01.1]}
2... a6 {[%clk 0:02:51.6]} 3. c4 {[%clk 0:03:02]} 3... dxc4 {[%clk 0:02:51.2]}
4. a4 {[%clk 0:03:00.3]} 4... Nf6 {[%clk 0:02:14]} 5. e3 {[%clk 0:02:58]} 5...
Bg4 {[%clk 0:02:06.9]} 6. Bxc4 {[%clk 0:02:56.4]} 6... e6 {[%clk 0:02:06.4]} 7.
O-O {[%clk 0:02:47.6]} 7... Nc6 {[%clk 0:02:02.4]} 8. h3 {[%clk 0:02:46.8]} 8...
Bh5 {[%clk 0:02:02.2]} 9. Nbd2 {[%clk 0:02:45.8]} 9... Bd6 {[%clk 0:01:56.1]}
10. b3 {[%clk 0:02:39.5]} 10... O-O {[%clk 0:01:51.5]} 11. Bb2 {[%clk 0:02:39]}
11... Qe7 {[%clk 0:01:41.3]} 12. e4 {[%clk 0:02:34.5]} 12... e5 {[%clk
0:01:31.9]} 13. d5 {[%clk 0:02:33.8]} 13... Nb4 {[%clk 0:01:30.2]} 14. Re1
{[%clk 0:02:26.7]} 14... c6 {[%clk 0:01:03.7]} 15. Nf1 {[%clk 0:02:25.3]} 15...
b5 {[%clk 0:00:51.7]} 16. axb5 {[%clk 0:02:14.1]} 16... axb5 {[%clk 0:00:51.8]}
17. Rxa8 {[%clk 0:02:13.7]} 17... Rxa8 {[%clk 0:00:49.8]} 18. Bd3 {[%clk
0:02:03]} 18... cxd5 {[%clk 0:00:31.1]} 19. exd5 {[%clk 0:01:59.8]} 19... Nfxd5
{[%clk 0:00:30.7]} 20. Bxb5 {[%clk 0:01:49.1]} 20... f6 {[%clk 0:00:29.6]} 21.
Ng3 {[%clk 0:01:48.2]} 21... Bf7 {[%clk 0:00:13.2]} 22. Bc4 {[%clk 0:01:47.1]}
22... Qd7 {[%clk 0:00:08.1]} 23. Ne4 {[%clk 0:01:41.1]} 23... Be7 {[%clk
0:00:06.3]} 24. Qd2 {[%clk 0:01:39.8]} 24... Nb6 {[%clk 0:00:06.3]} 25. Bxf7+
{[%clk 0:01:36.7]} 25... Kxf7 {[%clk 0:00:06.6]} 26. Qe2 {[%clk 0:01:25.5]}
26... Kg8 {[%clk 0:00:06.3]} 27. Rd1 {[%clk 0:01:22.8]} 27... Qc6 {[%clk
0:00:06.6]} 28. Ng3 {[%clk 0:01:15.4]} 28... Rd8 {[%clk 0:00:06.1]} 29. Nf5
{[%clk 0:01:13.5]} 29... Rxd1+ {[%clk 0:00:05.6]} 30. Qxd1 {[%clk 0:01:14.4]}
30... Bf8 {[%clk 0:00:05.9]} 31. Qd8 {[%clk 0:01:12.3]} 31... Qd7 {[%clk
0:00:05.3]} 32. Qxd7 {[%clk 0:01:06.4]} 32... Nxd7 {[%clk 0:00:04.6]} 33. Kf1
{[%clk 0:01:05.5]} 33... Nc5 {[%clk 0:00:04.6]} 34. Nd2 {[%clk 0:01:04.9]} 34...
Ncd3 {[%clk 0:00:04.5]} 35. Bc3 {[%clk 0:01:03.4]} 35... g6 {[%clk 0:00:04.5]}
36. Ne3 {[%clk 0:01:02.2]} 36... f5 {[%clk 0:00:04]} 37. Nec4 {[%clk 0:00:59.7]}
37... e4 {[%clk 0:00:04]} 38. f3 {[%clk 0:00:59.4]} 38... Nd5 {[%clk 0:00:03.9]}
39. Bd4 {[%clk 0:00:57.6]} 39... exf3 {[%clk 0:00:04.1]} 40. Nxf3 {[%clk
0:00:58]} 40... N3f4 {[%clk 0:00:04.1]} 41. Be5 {[%clk 0:00:47.4]} 41... Ne6
{[%clk 0:00:04]} 42. Nd4 {[%clk 0:00:45.7]} 42... Nxd4 {[%clk 0:00:02.5]} 43.
Bxd4 {[%clk 0:00:46.6]} 43... Kf7 {[%clk 0:00:02.8]} 44. Ne3 {[%clk 0:00:44.7]}
44... Ke6 {[%clk 0:00:02.9]} 45. Ke2 {[%clk 0:00:43.2]} 45... Nxe3 {[%clk
0:00:03.1]} 46. Kxe3 {[%clk 0:00:42.1]} 46... Kd5 {[%clk 0:00:03.3]} 47. Kd3
{[%clk 0:00:41.9]} 47... g5 {[%clk 0:00:03.5]} 48. Be3 {[%clk 0:00:40.7]} 48...
f4 {[%clk 0:00:03.4]} 49. Bd2 {[%clk 0:00:39.9]} 49... h5 {[%clk 0:00:03.6]} 50.
h4 {[%clk 0:00:37.5]} 50... gxh4 {[%clk 0:00:03.8]} 51. Bxf4 {[%clk 0:00:36.6]}
51... Be7 {[%clk 0:00:03.8]} 52. Bd2 {[%clk 0:00:34.2]} 52... Ke5 {[%clk
0:00:03.6]} 53. Ke3 {[%clk 0:00:28]} 53... Kf5 {[%clk 0:00:03.5]} 54. Kf3 {[%clk
0:00:25.2]} 54... Ke5 {[%clk 0:00:02.7]} 55. Bc3+ {[%clk 0:00:25]} 55... Kd5
{[%clk 0:00:02.5]} 56. Kf4 {[%clk 0:00:25.2]} 56... Bd8 {[%clk 0:00:01.1]} 57.
Kf5 {[%clk 0:00:24.1]} 57... Be7 {[%clk 0:00:01.4]} 58. Bf6 {[%clk 0:00:20.8]}
58... Bd6 {[%clk 0:00:01.4]} 59. Bxh4 {[%clk 0:00:19]} 59... Kd4 {[%clk
0:00:01.6]} 60. Be1 {[%clk 0:00:19.1]} 60... Kd3 {[%clk 0:00:01.5]} 61. Kg5
{[%clk 0:00:17.8]} 61... Ke2 {[%clk 0:00:01.3]} 62. Bh4 {[%clk 0:00:14.4]} 62...
Kf1 {[%clk 0:00:01.3]} 63. g3 {[%clk 0:00:14.5]} 1-0